Cogmind - Beta 16 @@@ ROGUE MODE // 2026.01.20 @ 17:52:28 Player: +Jones Result: Destroyed by D-53 Grenadier with Mini Grenade Launcher Performance ------------- Evolutions (0) 0 Regions Visited (2) 400 Robots Destroyed (24) 120 Value Destroyed (346) 346 Prototype IDs (4) 80 Alien Tech Used (0) 0 Bonus (0) 0 TOTAL SCORE: 946 Bonus ------- None Cogmind --------- Core Integrity 0/250 Matter 268/300 Energy 230/250 System Corruption 0% Temperature Cool (17) Movement Rolling (110) Ox2 Location -10/Mines Parts ------- > --- POWER (1) -------- Ion Engine > --- PROPULSION (2) --- Wheel > --- UTILITY (2) ------ Large Storage Unit Backup Plating I > --- WEAPON (2) ------- Small Laser Light Assault Rifle > --- INVENTORY (15) --- Ion Engine Light Treads Wheel Seismic Detector Particle Gun Light Assault Rifle Mining Laser Hammer Peak State ------------ > --- POWER ------------ Ion Engine > --- PROPULSION ------- Light Treads Wheel > --- UTILITY ---------- Large Storage Unit Seismic Detector > --- WEAPON ----------- Small Laser Small Laser > --- INVENTORY -------- Ion Engine Wheel Wheel Backup Plating I Particle Gun Light Assault Rifle Light Assault Rifle Mining Laser Hammer [Rating: 8] Favorites ----------- Power Ion Engine Engine Ion Engine Propulsion Light Treads Treads Light Treads Wheel Wheel Utility Large Storage Unit Device Seismic Detector Storage Large Storage Unit Protection Light Armor Plating Weapon EM Pulse Gun Energy Gun EM Pulse Gun Ballistic Gun Light Assault Rifle Special Weapon Mining Laser Build | -11 -10 -10 ------- Run | Yrd Mat Min Slots Evolved . | . . . Power . | . . . Propulsion . | . . . Utility . | . . . Weapon . | . . . Parts Attached 17 | 9 7 1 Power 2 | 2 . . Engine 2 | 2 . . Core . | . . . Reactor . | . . . Propulsion 4 | 2 2 . Treads 2 | 2 . . Leg . | . . . Wheel 2 | . 2 . Hover . | . . . Flight . | . . . Utility 5 | 2 2 1 Device 1 | 1 . . Storage 2 | 1 1 . Processor . | . . . Hackware . | . . . Protection 2 | . 1 1 Artifact . | . . . Weapon 6 | 3 3 . Energy Gun 4 | 2 2 . Energy Cannon . | . . . Ballistic Gun 1 | 1 . . Ballistic Cannon . | . . . Launcher . | . . . Special Weapon 1 | . 1 . Impact Weapon . | . . . Slashing Weapon . | . . . Piercing Weapon . | . . . Special Melee Weapon . | . . . Unidentified Prototypes . | . . . Parts Lost 6 | . 4 2 Power . | . . . Propulsion 2 | . 1 1 Utility 1 | . 1 . Weapon 3 | . 2 1 Highest Loss Streak 3 | . 3 2 To Critical Strikes . | . . . Average Backups 5 | 1 5 9 Power . | . . 1 Propulsion . | . . 2 Utility 1 | . 1 1 Weapon 2 | 1 2 5 Tool/Special . | . . . Unused Backups 5 | . 1 4 Power 1 | . . 1 Propulsion . | . . . Utility 1 | . 1 . Weapon 3 | . . 3 Tool/Special . | . . . Average Slot Usage (%) 88 | . 88 90 Engine 14 | . 14 14 Treads 21 | . 22 . Device 3 | . 3 14 Storage 14 | . 14 14 Protection 5 | . 5 . Energy Gun 17 | . 17 23 Ballistic Gun 3 | . 3 . Special Weapon 6 | . 6 . Peak Build Rating 8 | 6 8 8 Average Rating 6 | 4 6 7 On Entrance 4 | . 6 8 Avg Prop Armor Cover (%) . | . . . Naked Turns . | . . . Heaviest Build 32 | 12 32 28 Greatest Support 40 | 40 40 20 Greatest Overweight (x) 1 | . 1 1 Average Overweight (x) . | . . 1 Largest Inventory Capacity 15 | 8 15 15 Average Capacity 14 | 7 14 15 Most Carried 10 | 3 10 9 Average Carried 5 | 1 5 8 Final Capacity 15 | 8 15 15 Final Carried 9 | 3 9 8 Class Distribution -------------------- 100% | Mutant Dominant Class ---------------- Mutant | -10/Materials Mutant | -10/Mines Resources | -11 -10 -10 ----------- Run | Yrd Mat Min Matter Collected 593 | 227 366 . Remotely . | . . . Salvage Created 702 | 155 547 . Parts 51 | 10 41 . Haulers Intercepted 2 | . 2 . Recyclers Shooed . | . . . Parts Field Recycled . | . . . Retrieved Matter . | . . . Parts Self-Destructed . | . . . Prevented . | . . . Parts Restored . | . . . Kills | -11 -10 -10 ------- Run | Yrd Mat Min Combat Hostiles Destroyed 10 | . 10 . Guns 6 | . 6 . AOE 4 | . 4 . Classes Destroyed 9 | 2 7 . Worker 2 | . 2 . Builder 2 | . 2 . Tunneler 3 | 3 . . Hauler 2 | . 2 . Recycler 2 | 1 1 . Operator 1 | . 1 . Watcher 2 | . 2 . Swarmer 6 | . 6 . Grunt 4 | . 4 . Best Kill Streak 4 | 3 4 . Combat Bots Only 3 | . 3 . Max Kills in Single Turn 2 | 1 2 . Gunslinging . | . . . Exploded 2 | . 2 . Melee . | . . . Uniques/NPCs Destroyed . | . . . Combat | -11 -10 -10 -------- Run | Yrd Mat Min Hostile Shots Fired 67 | . 55 12 Missed 21 | . 21 . Hits 46 | . 34 12 Projectile 46 | . 34 12 AOE 12 | . . 12 Damage Taken 1107 | . 617 490 Core 264 | . 74 190 Absorbed by Shields . | . . . Regen/Repaired (Parts) 89 | . 89 . Core Remaining (%) 100 | 100 . . Volleys Fired 120 | 28 88 4 Largest 2 | 1 2 2 Hottest 100 | 20 100 80 Shots Fired 156 | 28 120 8 Gun 127 | 28 91 8 Cannon . | . . . Launcher . | . . . Special 29 | . 29 . Kinetic 75 | 28 45 2 Thermal 45 | . 39 6 Explosive . | . . . Electromagnetic 36 | . 36 . Robot Hit Streak 9 | 7 9 6 Robot Miss Streak 5 | 2 5 2 Penetration Max . | . . . Secondary Targets 1 | . 1 . Max Gunslinging Chain 1 | . 1 . Shots Hit Robots 73 | 20 47 6 Core Hits 44 | 9 31 4 Critical Kills . | . . . Critical Parts Destroyed . | . . . Critical Strikes . | . . . Melee Attacks . | . . . Impact . | . . . Slashing . | . . . Piercing . | . . . Sneak Attacks . | . . . Combat Hostiles . | . . . Follow-up Attacks . | . . . Damage Inflicted 997 | 150 777 70 Guns 670 | 150 450 70 Cannons . | . . . Explosions 327 | . 327 . Melee . | . . . Ramming . | . . . Kinetic 340 | 150 176 14 Thermal 445 | . 389 56 Explosive . | . . . Electromagnetic 212 | . 212 . Impact . | . . . Slashing . | . . . Piercing . | . . . Highest Corruption . | . . . Average Corruption . | . . . Corruption Purged . | . . . Corruption Blocked . | . . . Overload Shots . | . . . Overflow Damage 194 | . 194 . Projectiles . | . . . Explosions 194 | . 194 . Melee . | . . . Knockbacks . | . . . Impact . | . . . Kinetic . | . . . Secondary . | . . . Self-Inflicted Damage 234 | . 234 . Shots 4 | . 4 . Rammed . | . . . Targets Rammed . | . . . Kicked . | . . . Crushed . | . . . Highest Temperature 194 | . 194 36 Average Temperature 40 | . 40 23 Received Heat Transfer 129 | . 129 . Siege Activations . | . . . Martial Activations . | . . . Shielding Activations . | . . . Robots Disrupted . | . . . Combat Hostiles . | . . . Robots Corrupted . | . . . Combat Hostiles . | . . . Parts Fried 1 | . 1 . Impact Corruptions . | . . . Robots Melted . | . . . Combat Hostiles . | . . . Parts Melted . | . . . Heat Transferred 525 | . 400 125 Parts Sabotaged . | . . . Parts Stolen . | . . . Parts Stripped . | . . . Power Chain Reactions 2 | . 2 . Alert | -11 -10 -10 ------- Run | Yrd Mat Min Maximum Alert Level . | . . . Low Security (%) 100 | 100 100 100 Level 1 . | . . . Level 2 . | . . . Level 3 . | . . . Level 4 . | . . . Level 5 . | . . . High Security . | . . . Max Security . | . . . Peak Influence 135 | 5 135 4 Initial 4 | . . 4 Average 43 | 1 47 2 Influence Increases 495 | 20 475 . Destroy 0b10 Robot/C 200 | . 200 . Destroy 0b10 Robot/NC 70 | 20 50 . Destroy Leader 58 | . 58 . Successful Hack 43 | . 43 . Disable Machine 60 | . 60 . Destroy Structure 64 | . 64 . Influence Decreases 495 | 20 463 12 Entered New Map 8 | . . 8 Time Decay 443 | 20 423 . Lost Part 44 | . 40 4 Squads Dispatched 2 | . 2 . Investigation 1 | . 1 . Extermination . | . . . Reinforcement 1 | . 1 . Assault . | . . . Garrison . | . . . Intercept . | . . . Searches Triggered . | . . . Construction Impeded . | . . . Haulers Reinforced . | . . . Active Scanning Responses . | . . . Cargo Convoy Interrupts . | . . . Stealth | -11 -10 -10 --------- Run | Yrd Mat Min Distress Signals 3 | . 3 . Communications Jammed . | . . . Distress Signals . | . . . Times Spotted 24 | . 22 2 Peak Tracking Total 6 | . 6 2 Tactical Retreats . | . . . Traps | -11 -10 -10 ------- Run | Yrd Mat Min Traps Triggered 1 | . 1 . Indirectly . | . . . Trap Hack Attempts . | . . . Triggered . | . . . Disarmed . | . . . Reprogrammed . | . . . Reused . | . . . Traps Extracted . | . . . Installed . | . . . Triggered . | . . . Machines | -11 -10 -10 ---------- Run | Yrd Mat Min Machines Disabled 4 | . 4 . Max in Single Turn 2 | . 2 . Machines Repaired . | . . . Machines Dismantled . | . . . Machines Sabotaged . | . . . Overloaded Fab Kills . | . . . Hacking | -11 -10 -10 --------- Run | Yrd Mat Min Machines Accessed 9 | . 9 . Terminals 7 | . 7 . Fabricators . | . . . Repair Stations 1 | . 1 . Recycling Units 1 | . 1 . Scanalyzers . | . . . Garrison Access . | . . . Total Hacks 33 | . 33 . Successful 23 | . 23 . Failed 10 | . 10 . Catastrophic . | . . . Database Lockouts . | . . . Manual 24 | . 24 . Terminals 26 | . 26 . Fabricators . | . . . Repair Stations 5 | . 5 . Recycling Units 2 | . 2 . Scanalyzers . | . . . Garrison Access . | . . . Terminal Hacks 7 | . 7 . Robot Analysis 3 | . 3 . Prototype ID Bank 3 | . 3 . Terminal Index 1 | . 1 . Fabricator Hacks . | . . . Repair Station Hacks 4 | . 4 . Scan Component 2 | . 2 . Repair 1 | . 1 . Refit 1 | . 1 . Recycling Unit Hacks 1 | . 1 . Retrieve Components 1 | . 1 . Scanalyzer . | . . . Garrison Access Hacks . | . . . Unauthorized Hacks 11 | . 11 . Terminals 10 | . 10 . Botnet 3 | . 3 . Operators 1 | . 1 . Skim 6 | . 6 . Fabricators . | . . . Repair Stations . | . . . Recycling Units 1 | . 1 . Recyclers 1 | . 1 . Scanalyzers . | . . . Garrison Access . | . . . Data Cores Recovered . | . . . Used . | . . . Hacking Detections 8 | . 8 . Full Trace Events 1 | . 1 . Feedback Events . | . . . Feedback Blocked . | . . . Robot Schematics Acquired . | . . . Robots Built . | . . . Authchips . | . . . Time . | . . . Total Robot Build Rating . | . . . Part Schematics Acquired . | . . . Parts Built . | . . . Authchips . | . . . Time . | . . . Total Part Build Rating . | . . . Part Studies Acquired . | . . . Parts Repaired 1 | . 1 . Time 26 | . 26 . Parts Recycled . | . . . Recycled Matter . | . . . Retrieved Matter . | . . . Retrieved Components 6 | . 6 . Parts Scanalyzed . | . . . Part Schematics Acquired . | . . . Parts Damaged . | . . . Bothacking | -11 -10 -10 ------------ Run | Yrd Mat Min Used RIF Installer . | . . . Robots Hacked . | . . . Non-combat . | . . . Combat . | . . . Robot Hacks Applied . | . . . Relay Couplers Released . | . . . Fabnet Peak Effective % . | . . . Robots Rewired . | . . . Allies Hacked . | . . . Hacks Repelled . | . . . Allies | -11 -10 -10 -------- Run | Yrd Mat Min Total Allies . | . . . Largest Group . | . . . Highest-Rated Group . | . . . Highest-Rated Ally . | . . . Total Orders . | . . . Ally Attacks . | . . . Total Damage . | . . . Kills . | . . . Allies Corrupted . | . . . Allies Melted . | . . . Intel | -11 -10 -10 ------- Run | Yrd Mat Min Active Infowar (turns) 487 | 23 437 27 Seismic 487 | 23 437 27 Robot Analysis Total 3 | . 3 . Derelict Logs Recovered . | . . . Drone Launches . | . . . Drone Recoveries . | . . . Exploration | -11 -10 -10 ------------- Run | Yrd Mat Min Turns Passed 1976 | 156 1792 28 Spaces Moved 818 | 57 747 14 Core 3 | 3 . . Treads 787 | 54 733 . Legs . | . . . Wheels 28 | . 14 14 Hover . | . . . Flight . | . . . Fastest Speed 50 | 50 95 95 Average Speed 181 | 154 185 95 Slowest Speed 240 | 160 240 95 Overloaded Moves . | . . . Propulsion Burnouts . | . . . Robots Hopped . | . . . Potential Cave-ins 2 | . 2 . Cave-ins Triggered . | . . . Exploration Rate (%) 36 | 5 96 7 Regions Visited 2 Branch Regions 1 Pre-discovered Areas . | . . . Known Exits Taken 1 | . 1 . Unknown Exits Taken 1 | 1 . . Scrap Searched . | . . . Spaces Dug 18 | . 18 . Terrain Destroyed 71 | . 71 . Melee . | . . . Projectile 27 | . 27 . AOE 44 | . 44 . Terrain Rammed . | . . . Walls Destroyed . | . . . Machines Disabled . | . . . Actions | -11 -10 -10 --------- Run | Yrd Mat Min Total 1096 | 100 975 21 Wait 104 | 3 100 1 Move 816 | 56 746 14 Hop . | . . . Pick Up 11 | 1 10 . Fast Attach 10 | 8 2 . Attach 6 | . 5 1 Detach 4 | 2 2 . Swap 22 | 1 20 1 Drop 3 | 1 2 . Fire 120 | 28 88 4 Melee . | . . . Ram . | . . . Kick . | . . . Crush . | . . . Escape Stasis . | . . . Rewire . | . . . Trap . | . . . Miscellaneous . | . . . Route ------- -11/Scrapyard -10/Materials (discovered 6 exits: [*Mat x3] / *Min x2 / [*Sub]) -10/Mines History --------- Turn | Location | Event 27 | -11/Scrapyard | Discovered new exit (range 16) 157 | -11/Scrapyard | Entered Materials 257 | -10/Materials | Discovered new exit (range 5) 307 | -10/Materials | Build established: Mutant 508 | -10/Materials | Discovered new exit (range 9) 840 | -10/Materials | Discovered new exit (range 16) 844 | -10/Materials | Discovered new exit (range 13) 999 | -10/Materials | Discovered new exit (range 15) 1281 | -10/Materials | Lost 3 parts (1n1u1w) 1393 | -10/Materials | Discovered new exit (range 6) 1548 | -10/Materials | Learned location of 1 exit from Storage 1627 | -10/Materials | Learned 4 Recycling zone layouts 1694 | -10/Materials | Learned location of 2 exits from Subcaves 1749 | -10/Materials | Learned location of 2 exits from Materials 1773 | -10/Materials | Repaired Lgt. Treads 1796 | -10/Materials | Identified exit to Mines 1832 | -10/Materials | Learned location of 1 exit from Recycling 1937 | -10/Materials | Learned location of 2 exits from Subcaves 1949 | -10/Materials | Entered Mines 1950 | -10/Mines | Assembled infested the area 1955 | -10/Mines | Assisted by a Guerilla fighting off Assembled 1970 | -10/Mines | Core integrity fell below 50% 1974 | -10/Mines | Core integrity fell below 20% 1977 | -10/Mines | Destroyed by D-53 Grenadier with Mini Grenade Launcher Last Messages --------------- LOCATION=MINES GOAL=ESCAPE Something is scanning the area. 01950_ ALERT: Infestation in the mines, dispatching Demolisher response squad. 01950_ A derelict wanders into view. 01955_ A derelict emerges from the shadows: "You need to get out of here! I've been tracking a group of Assembled to figure out where they're coming from, and they're closing on this area, come on!" 01964_ C-45 Heavy ARC bursts open, deploying its payload. 01964_ D-53 Grenadier unfolds itself. 01964_ MW-GC5(g) destroyed. 01966_ The unstable cave ceiling collapses. 01967_ Wheel destroyed. 01969_ Sml. Laser destroyed. 01973_ D-53 Grenadier destroyed. 01976_ The unstable cave ceiling collapses. Map ----- +----------------------------------------------------+ | ????????????????????????????????????????????? | | ????????????????????????????????????????????? | | ????????????????????????????????????????????? | | ????????????????????????????????????????????? | | ????????????????????????????????????????????? | | ????????????????????????????????????????????? | | ????????????????????????????????????????????? | | ????????????????????????????????????????????? | | ????????????????????????????????????????????? | | ????????????????????????????????????????????? | | ????????????????????????????????????????????? | | ???????????????????????????###??????????????? | | ??????????????????????????## ##?????????????? | | ???????????????????????#### #?????????????? | | ??????????????????????## #?????????????? | | ??????????????????????# ##?????????????? | | ??????????????????????# #??????????????? | | ?????????????????????## ##?????????????? | | ????????????????????## #?????????????? | | ???????????????????## #?????????????? | | ??????????????###### ##?????????????? | | ??????????????# ##??????????????? | | ??????????????# ##### ##?????????????? | | ????????????????????# # #?????????????? | | ????????????????????## #?????????????? | | ????????????????????# @ #?????????????? | | ????????????????????# #?????????????? | | ????????????????????# #?????????????? | | ????????????????????## #????????????? | | ?????????????????????## d #????????????? | | ??????????????????????######% #????????????? | | ???????????????????????????? ##????????????? | | ???????????????????????????? ##?????????????? | | ???????????????????????????? ??????????????? | | ???????????????????????????? ??????????????? | | ?????????????????????????????#??????????????? | | ????????????????????????????????????????????? | | ????????????????????????????????????????????? | | ????????????????????????????????????????????? | | ????????????????????????????????????????????? | | ????????????????????????????????????????????? | | ????????????????????????????????????????????? | | ????????????????????????????????????????????? | | ????????????????????????????????????????????? | | ????????????????????????????????????????????? | | | | | | | | | | | +----------------------------------------------------+ Best States ------------- Heat Dissipation 25 Energy Generation 10 Energy Capacity 250 Matter Stores 300 Matter Capacity 300 Sight Range 16 Terrain Scan Density 10 Armor Coverage 150 Evasion (%) 41 Recoil Reduction 2 Item Schematics ----------------- None Robot Schematics ------------------ None Fabricated ------------ Nothing Repaired ---------- Lgt. Treads | 36% | -10/Materials Studied --------- None Alien Tech Used ----------------- None Achievements -------------- None Challenges ------------ None Game ------ Seed ActuatorGravitonMegatreads Manual? 0 Play Time 00:13:02 Cumulative 346.5 hours Start 2026.01.20 @ 17:39:49 End 2026.01.20 @ 17:52:28 Sessions 1 Manual Loads 0 Difficulty Rogue Special Mode None Game No. 278 Rogue 278 Adventurer 0 Explorer 0 Win Type - Total 2 Types 2/0/0/0/0/0/0/0/0/0 Lore% 62 Gallery% 70 Achievement% 48 Wizard Run 0 Options --------- Layout 1 ASCII 0 Keyboard 0 Movement Mouse Keybinds 0 Fullscreen 1 Font 32/SmallcapsGlow Map View 50x35 Zoom Use 0% Tactical HUD 1 Map Filters NONE Filters NONE Steam 1 RUN: e0f613e8-a66f-4f24-9908-f075b0bf87a1